Cogmind - Beta 17 @@@ ROGUE MODE // 2026.07.16 @ 19:39:34 Player: Blaf Result: Destroyed by G-34 Mercenary with Small Laser Performance ------------- Evolutions (0) 0 Regions Visited (1) 200 Robots Destroyed (13) 65 Value Destroyed (363) 363 Prototype IDs (0) 0 Alien Tech Used (0) 0 Bonus (0) 0 TOTAL SCORE: 628 Bonus ------- None Cogmind --------- Core Integrity 0/250 Matter 289/300 Energy 230/250 System Corruption 0% Temperature Cool (6) Movement Rolling (80) Location -10/Materials Parts ------- > --- POWER (1) -------- Ion Engine > --- PROPULSION (2) --- Wheel Wheel > --- UTILITY (2) ------ Small Storage Unit > --- WEAPON (2) ------- Small Laser Light Assault Rifle > --- INVENTORY (8) ---- Ion Engine Wheel Wheel Medium Storage Unit Peak State ------------ > --- POWER ------------ Ion Engine > --- PROPULSION ------- Compact Wheel Compact Wheel > --- UTILITY ---------- Small Storage Unit Seismic Detector > --- WEAPON ----------- Medium Laser Light Assault Rifle > --- INVENTORY -------- Ion Engine Small Laser Grenade Launcher [Rating: 7] Favorites ----------- Power Ion Engine Engine Ion Engine Propulsion Wheel Wheel Wheel Utility Small Storage Unit Device Seismic Detector Storage Small Storage Unit Weapon Light Assault Rifle Energy Gun Medium Laser Ballistic Gun Light Assault Rifle Launcher Grenade Launcher Build | -11 -10 ------- Run | Yrd Mat Slots Evolved . | . . Power . | . . Propulsion . | . . Utility . | . . Weapon . | . . Parts Attached 15 | 5 10 Power 2 | 1 1 Engine 2 | 1 1 Core . | . . Reactor . | . . Propulsion 6 | 2 4 Treads . | . . Leg . | . . Wheel 6 | 2 4 Hover . | . . Flight . | . . Utility 2 | . 2 Device 1 | . 1 Storage 1 | . 1 Processor . | . . Hackware . | . . Protection . | . . Artifact . | . . Weapon 5 | 2 3 Energy Gun 2 | 1 1 Energy Cannon . | . . Ballistic Gun 2 | 1 1 Ballistic Cannon . | . . Launcher 1 | . 1 Special Weapon . | . . Impact Weapon . | . . Slashing Weapon . | . . Piercing Weapon . | . . Special Melee Weapon . | . . Unidentified Prototypes . | . . Parts Lost 6 | . 6 Power 1 | . 1 Propulsion 1 | . 1 Utility 1 | . 1 Weapon 3 | . 3 Highest Loss Streak 3 | . 3 To Critical Strikes . | . . Average Backups 4 | 1 5 Power . | . . Propulsion 1 | . 1 Utility . | . . Weapon 1 | . 2 Tool/Special . | . . Unused Backups 2 | . 2 Power 1 | . 1 Propulsion . | . . Utility 1 | . 1 Weapon . | . . Tool/Special . | . . Average Slot Usage (%) 94 | . 94 Engine 13 | . 13 Wheel 27 | . 27 Device 10 | . 10 Storage 13 | . 13 Energy Gun 8 | . 8 Ballistic Gun 17 | . 17 Launcher 1 | . 1 Peak Build Rating 7 | 5 7 Average Rating 6 | 3 6 On Entrance 2 | . 5 Avg Prop Armor Cover (%) . | . . Naked Turns . | . . Heaviest Build 16 | 8 16 Greatest Support 32 | 32 32 Greatest Overweight (x) 2 | 2 . Average Overweight (x) . | . . Largest Inventory Capacity 8 | 5 8 Average Capacity 7 | 5 7 Most Carried 6 | 3 6 Average Carried 4 | 1 5 Final Capacity 8 | 5 8 Final Carried 4 | 3 4 Class Distribution -------------------- 100% | Mutant Dominant Class ---------------- Mutant | -10/Materials Resources | -11 -10 ----------- Run | Yrd Mat Matter Collected 450 | 229 221 Remotely . | . . Salvage Created 459 | . 459 Parts 28 | . 28 Haulers Intercepted 2 | . 2 Recyclers Shooed 1 | . 1 Parts Field Recycled . | . . Retrieved Matter . | . . Parts Self-Destructed . | . . Prevented . | . . Parts Restored . | . . Kills | -11 -10 ------- Run | Yrd Mat Combat Hostiles Destroyed 8 | . 8 Guns 6 | . 6 AOE 2 | . 2 Classes Destroyed 4 | . 4 Worker 2 | . 2 Hauler 2 | . 2 Watcher 1 | . 1 Grunt 8 | . 8 Best Kill Streak 4 | . 4 Combat Bots Only 3 | . 3 Max Kills in Single Turn 2 | . 2 Gunslinging . | . . Exploded 1 | . 1 Melee . | . . Uniques/NPCs Destroyed . | . . Combat | -11 -10 -------- Run | Yrd Mat Hostile Shots Fired 60 | . 60 Missed 9 | . 9 Hits 51 | . 51 Projectile 51 | . 51 Critical Strikes 3 | . 3 Damage Taken 689 | . 689 Core 254 | . 254 Absorbed by Shields . | . . Core Remaining (%) 100 | 100 . Volleys Fired 78 | . 78 Largest 2 | . 2 Hottest 80 | . 80 Shots Fired 121 | . 121 Gun 115 | . 115 Cannon . | . . Launcher 6 | . 6 Special . | . . Kinetic 67 | . 67 Thermal 48 | . 48 Explosive 6 | . 6 Electromagnetic . | . . Robot Hit Streak 14 | . 14 Robot Miss Streak 3 | . 3 Penetration Max . | . . Secondary Targets . | . . Shots Hit Robots 78 | . 78 Core Hits 31 | . 31 Critical Kills 1 | . 1 Critical Parts Destroyed . | . . Critical Strikes 5 | . 5 Burn 4 | . 4 Destroy 1 | . 1 Melee Attacks . | . . Impact . | . . Slashing . | . . Piercing . | . . Sneak Attacks . | . . Combat Hostiles . | . . Follow-up Attacks . | . . Damage Inflicted 992 | . 992 Guns 727 | . 727 Cannons . | . . Explosions 265 | . 265 Melee . | . . Ramming . | . . Kinetic 326 | . 326 Thermal 401 | . 401 Explosive 169 | . 169 Electromagnetic 96 | . 96 Impact . | . . Slashing . | . . Piercing . | . . Highest Corruption . | . . Average Corruption . | . . Corruption Purged . | . . Corruption Blocked . | . . Overload Shots . | . . Overflow Damage . | . . Projectiles . | . . Explosions . | . . Melee . | . . Knockbacks . | . . Impact . | . . Kinetic . | . . Secondary . | . . Self-Inflicted Damage . | . . Shots . | . . Rammed . | . . Targets Rammed . | . . Kicked . | . . Crushed . | . . Highest Temperature 277 | . 277 Average Temperature 96 | . 96 Received Heat Transfer 432 | . 432 Siege Activations . | . . Martial Activations . | . . Shielding Activations . | . . Robots Disrupted . | . . Combat Hostiles . | . . Robots Corrupted . | . . Combat Hostiles . | . . Parts Fried . | . . Impact Corruptions . | . . Robots Melted . | . . Combat Hostiles . | . . Parts Melted 1 | . 1 Heat Transferred 1480 | . 1480 Parts Sabotaged . | . . Parts Stolen . | . . Parts Stripped . | . . Power Chain Reactions . | . . Alert | -11 -10 ------- Run | Yrd Mat Maximum Alert Level . | . . Low Security (%) 100 | 100 100 Level 1 . | . . Level 2 . | . . Level 3 . | . . Level 4 . | . . Level 5 . | . . High Security . | . . Max Security . | . . Peak Influence 117 | . 117 Initial . | . . Average 42 | . 46 Influence Increases 323 | . 323 Destroy 0b10 Robot/C 160 | . 160 Destroy 0b10 Robot/NC 25 | . 25 Destroy Leader 36 | . 36 Disable Machine 45 | . 45 Destroy Structure 27 | . 27 Lose Combat Pursuer 30 | . 30 Influence Decreases 295 | . 295 Time Decay 235 | . 235 Lost Part 60 | . 60 Squads Dispatched 3 | . 3 Investigation 1 | . 1 Extermination . | . . Reinforcement 2 | . 2 Assault . | . . Garrison . | . . Intercept . | . . Searches Triggered . | . . Construction Impeded . | . . Haulers Reinforced . | . . Active Scanning Responses . | . . Cargo Convoy Interrupts . | . . Stealth | -11 -10 --------- Run | Yrd Mat Distress Signals . | . . Communications Jammed . | . . Distress Signals . | . . Times Spotted 17 | . 17 Peak Tracking Total 5 | . 5 Tactical Retreats 2 | . 2 Traps | -11 -10 ------- Run | Yrd Mat Traps Triggered 1 | . 1 Indirectly . | . . Trap Hack Attempts . | . . Triggered . | . . Disarmed . | . . Reprogrammed . | . . Reused . | . . Traps Extracted . | . . Installed . | . . Triggered . | . . Machines | -11 -10 ---------- Run | Yrd Mat Machines Disabled 3 | . 3 Max in Single Turn 2 | . 2 Machines Repaired . | . . Machines Dismantled . | . . Machines Sabotaged . | . . Overloaded Fab Kills . | . . Hacking | -11 -10 --------- Run | Yrd Mat Machines Accessed . | . . Terminals . | . . Fabricators . | . . Repair Stations . | . . Recycling Units . | . . Scanalyzers . | . . Garrison Access . | . . Total Hacks . | . . Successful . | . . Failed . | . . Catastrophic . | . . Database Lockouts . | . . Manual . | . . Terminals . | . . Fabricators . | . . Repair Stations . | . . Recycling Units . | . . Scanalyzers . | . . Garrison Access . | . . Terminal Hacks . | . . Fabricator Hacks . | . . Repair Station Hacks . | . . Recycling Unit Hacks . | . . Scanalyzer . | . . Garrison Access Hacks . | . . Unauthorized Hacks . | . . Terminals . | . . Fabricators . | . . Repair Stations . | . . Recycling Units . | . . Scanalyzers . | . . Garrison Access . | . . Data Cores Recovered . | . . Used . | . . Hacking Detections . | . . Full Trace Events . | . . Feedback Events . | . . Feedback Blocked . | . . Robot Schematics Acquired . | . . Robots Built . | . . Authchips . | . . Time . | . . Total Robot Build Rating . | . . Part Schematics Acquired . | . . Parts Built . | . . Authchips . | . . Time . | . . Total Part Build Rating . | . . Part Studies Acquired . | . . Parts Repaired . | . . Time . | . . Parts Recycled . | . . Recycled Matter . | . . Retrieved Matter . | . . Retrieved Components . | . . Parts Scanalyzed . | . . Part Schematics Acquired . | . . Parts Damaged . | . . Bothacking | -11 -10 ------------ Run | Yrd Mat Used RIF Installer . | . . Robots Hacked . | . . Non-combat . | . . Combat . | . . Robot Hacks Applied . | . . Relay Couplers Released . | . . Fabnet Peak Effective % . | . . Robots Rewired . | . . Allies Hacked . | . . Hacks Repelled . | . . Allies | -11 -10 -------- Run | Yrd Mat Total Allies . | . . Largest Group . | . . Highest-Rated Group . | . . Highest-Rated Ally . | . . Total Orders . | . . Ally Attacks . | . . Total Damage . | . . Kills . | . . Allies Corrupted . | . . Allies Melted . | . . Intel | -11 -10 ------- Run | Yrd Mat Active Infowar (turns) 662 | . 662 Seismic 662 | . 662 Robot Analysis Total . | . . Derelict Logs Recovered . | . . Drone Launches . | . . Drone Recoveries . | . . Exploration | -11 -10 ------------- Run | Yrd Mat Turns Passed 946 | 89 857 Spaces Moved 761 | 83 678 Core 31 | 31 . Treads . | . . Legs . | . . Wheels 730 | 52 678 Hover . | . . Flight . | . . Fastest Speed 50 | 50 80 Average Speed 88 | 94 88 Slowest Speed 150 | 150 100 Overloaded Moves . | . . Propulsion Burnouts . | . . Robots Hopped . | . . Potential Cave-ins . | . . Cave-ins Triggered . | . . Exploration Rate (%) 35 | 4 67 Regions Visited 1 Branch Regions . Pre-discovered Areas . | . . Known Exits Taken . | . . Unknown Exits Taken 1 | 1 . Scrap Searched . | . . Spaces Dug . | . . Terrain Destroyed 28 | . 28 Melee . | . . Projectile . | . . AOE 28 | . 28 Terrain Rammed . | . . Walls Destroyed . | . . Machines Disabled . | . . Actions | -11 -10 --------- Run | Yrd Mat Total 920 | 90 830 Wait 54 | . 54 Move 760 | 82 678 Hop . | . . Pick Up 10 | 3 7 Fast Attach 6 | 5 1 Attach 7 | . 7 Detach 1 | . 1 Swap 3 | . 3 Drop 1 | . 1 Fire 78 | . 78 Melee . | . . Ram . | . . Kick . | . . Crush . | . . Escape Stasis . | . . Rewire . | . . Trap . | . . Miscellaneous . | . . Route ------- -11/Scrapyard -10/Materials (discovered 2 exits: [*Mat] / [*Min]) History --------- Turn | Location | Event 4 | -11/Scrapyard | Discovered new exit (range 16) 90 | -11/Scrapyard | Entered Materials 315 | -10/Materials | Build established: Mutant 455 | -10/Materials | Core integrity fell below 50% 483 | -10/Materials | Lost 3 parts (1p1n1w) 633 | -10/Materials | Core integrity fell below 20% 755 | -10/Materials | Discovered new exit (range 16) 912 | -10/Materials | Discovered new exit (range 16) 947 | -10/Materials | Destroyed by G-34 Mercenary with Small Laser Last Messages --------------- 00647_ Acquired 10 matter. 00653_ Acquired Ion Engine. 00672_ The unstable cave ceiling collapses. 00690_ K-01 Serf cleans the Electrolysis Chamber. 00700_ K-01 Serf cleans the Repair Station. 00755_ EXIT=FOUND 00766_ Seismic Detector destroyed. 00781_ G-34 Mercenary suffers critical hit (Destroy). 00781_ G-34 Mercenary destroyed. 00788_ Acquired 4 matter. 00799_ T-07 Excavator is excavating. 00844_ K-01 Serf cleans the Repair Station. 00878_ A-02 Transporter destroyed. 00882_ Acquired 20 matter. 00909_ K-01 Serf cleans the Electrolysis Chamber. 00912_ EXIT=FOUND 00943_ Lgt. Assault Rifle destroyed. Map ----- +----------------------------------------------------+ | | | | | | | | | | | | | | | | | | | | | | | ??????????????????????????????? | | ??????????????###########?????? | | ??????????????# #?????? | | ??????????????# """ """ #?????? | | ??????????????# """ """ #?????? | | ??????????????# """ """ #??#### | | ???????####???# #??# | | ?????##"""##??# ! #??# | | ????##"!!!"##?# #??# | | ????#"" ""#?# #??# | | ????# #?#####+######## | | ????# < #?#### + | | ????# ###! ####### | | ????# ## #?????# | | ?????#@ #?#! ########## | | ?????##g ##?#! # #?# | | ??????# #??#! # #?# | | ??????# #??##! # """#?# | | ??????# #???#### + """#?# | | ?????## ######## # """#?# | | ?????# # #?# | | ?????# ########## | | ?????# """ #??????# # | | ?????# """ #??????# # | | ?????# """ ######??????# # | | ?????## ############### | | ??????# + # | | ??????# """ # """ """ T +[ | | ??????# """ # """ """ #! | | ??????# """ # """ """ ]#% | | ####### # # | | # # ########"Y"#### | | # " # #??????#"""#### | | # """ # ##???####### | | # """ # " " ##### # | | # """!#= "R" * # | | # ""|+% """ + | | # """|#= # | | # "" # ##### # | +----------------------------------------------------+ Best States ------------- Heat Dissipation 25 Energy Generation 10 Energy Capacity 250 Matter Stores 300 Matter Capacity 300 Sight Range 16 Terrain Scan Density 10 Evasion (%) 44 Item Schematics ----------------- None Robot Schematics ------------------ None Fabricated ------------ Nothing Repaired ---------- Nothing Studied --------- None Alien Tech Used ----------------- None Achievements -------------- None Challenges ------------ None Game ------ Seed PlatingChaosAirjet Manual? 0 Play Time 00:10:40 Cumulative 18.2 hours Start 2026.07.16 @ 19:29:22 End 2026.07.16 @ 19:39:34 Sessions 1 Manual Loads 0 Difficulty Rogue Special Mode None Game No. 33 Rogue 33 Adventurer 0 Explorer 0 Win Type - Total 0 Types 0/0/0/0/0/0/0/0/0/0 Lore% 7 Gallery% 15 Achievement% 13 Wizard Run 0 Options --------- Layout 1 ASCII 0 Keyboard 0 Movement Arrows Keybinds 0 Fullscreen 1 Font 24/Smallcaps Map View 50x35 Zoom Use 0% Tactical HUD 1 Map Filters NONE Filters NONE Steam 1 RUN: 417082ee-716b-42ea-83f7-d254b287c4ad